bitfinex/quotes_ETHUSD_20250220
["timestamp","ask_amount","ask_price","bid_price","bid_amount"]
[1740014956263,0.04553648,2724.4,2724.2,7.34149]
[1740014956419,0.04553648,2724.4,2724.0,3.67096]
[1740014956856,0.04553648,2724.4,2724.2,3.67073]
[1740014958865,0.04553648,2724.4,2724.1,3.67091]
[1740014959033,0.04553648,2724.4,2723.9,3.67112]
[1740014959232,0.04553648,2724.4,2724.1,3.67092]
[1740014959741,5.03849258,2724.4,2724.1,3.67092]
[1740014961753,5.03849258,2724.4,2724.1,3.67085]
[1740014961925,5.03849258,2724.4,2724.1,7.34169]
[1740014962464,5.03849258,2724.4,2724.2,3.67078]
[1740014963064,5.03849258,2724.4,2724.3,3.67066]
[1740014963442,5.03849258,2724.4,2724.1,3.67084]
[1740014963443,5.03849258,2724.4,2724.1,7.34169]
[1740014963630,5.03849258,2724.4,2724.1,3.67084]
[1740014963825,5.03849258,2724.4,2724.2,3.6708]
[1740014964263,5.03849258,2724.4,2724.1,3.67084]
[1740014964433,5.03849258,2724.4,2724.1,7.34169]
[1740014964638,5.03849258,2724.4,2724.1,3.67084]
[1740014965032,5.03849258,2724.4,2723.9,3.67116]
[1740014965274,6.72336166,2724.4,2724.1,3.67091]
[1740014965454,6.72336166,2724.4,2723.9,7.34226]
[1740014965653,6.72336166,2724.4,2724.0,3.67103]
[1740014967766,5.03849258,2724.4,2724.0,3.67103]
[1740014967963,5.03849258,2724.4,2724.1,3.6709]
[1740014968281,5.03849258,2724.4,2724.2,3.6708]
[1740014968438,5.03849258,2724.4,2724.1,3.6709]
[1740014968960,5.03849258,2724.4,2724.2,3.6708]
[1740014969162,5.03849258,2724.4,2724.1,3.6709]
[1740014969368,5.03849258,2724.4,2723.9,3.67116]
[1740014969568,5.03849258,2724.4,2723.9,7.34229]
[1740014969734,6.72336166,2724.4,2724.0,3.67101]
[1740014971235,5.03849258,2724.4,2724.1,3.67088]
[1740014972235,5.03849258,2724.4,2724.2,3.67068]
[1740014972436,5.03849258,2724.4,2724.1,3.67088]
[1740014973037,5.03849258,2724.4,2724.1,7.34173]
[1740014973262,5.03849258,2724.4,2724.1,3.67085]
[1740014973463,5.03849258,2724.4,2724.1,7.34171]
[1740014973673,5.03849258,2724.4,2724.1,3.67085]
[1740014973870,5.03849258,2724.4,2724.1,7.34168]
[1740014974065,5.03849258,2724.4,2724.1,3.67083]
[1740014974576,5.03849258,2724.4,2724.1,7.34168]
[1740014974871,5.03849258,2724.4,2724.2,3.67075]
[1740014975741,5.03849258,2724.4,2724.3,3.67066]
[1740014989283,6.72336166,2724.4,2724.1,0.265]
[1740014989649,8.20739783,2724.4,2724.1,0.265]
[1740014993465,0.8163,2724.3,2724.1,0.265]
[1740014993661,0.8163,2724.3,2723.8,3.67131]
[1740014993662,1.72896225,2724.2,2723.8,3.67131]
[1740014993868,1.68486908,2724.0,2723.6,3.67155]
[1740014994068,1.68486908,2724.0,2723.7,0.265]
[1740014994269,0.04421285,2723.9,2723.7,0.265]
[1740014994869,5.03716895,2723.9,2723.7,0.265]
[1740014996157,6.15439875,2723.9,2723.7,0.265]
[1740014996486,0.7895,2723.8,2723.7,0.265]
[1740014996893,0.7895,2723.8,2723.4,4.45317]
[1740014996894,0.83371285,2723.8,2723.4,4.45317]
[1740014997190,2.51858193,2723.8,2723.5,4.05350592]
[1740014998260,7.51153803,2723.8,2723.5,0.38178592]
[1740014998885,8.62979983,2723.8,2723.5,0.38178592]
[1740015000364,7.51153803,2723.8,2723.5,4.05350592]
[1740015000791,7.51153803,2723.8,2723.5,0.38178592]
[1740015002100,5.82666895,2723.8,2723.5,0.38178592]
[1740015002261,5.82666895,2723.8,2723.6,3.67151]
[1740015002262,5.03716895,2723.8,2723.6,3.67151]
[1740015003491,5.03716895,2723.8,2723.7,3.67147]
[1740015003691,5.03716895,2723.8,2723.5,1.15268592]
[1740015003898,5.03716895,2723.8,2723.6,3.67158]
[1740015004275,5.03716895,2723.8,2723.6,7.3431]
[1740015004677,5.03716895,2723.8,2723.6,3.67152]
[1740015004880,5.03716895,2723.8,2723.6,7.34304]
[1740015005293,5.03716895,2723.8,2723.5,1.66163451]
[1740015005492,5.03716895,2723.8,2723.5,4.82432592]
[1740015006178,5.03716895,2723.8,2723.6,3.67161]
[1740015006378,5.03716895,2723.8,2723.6,3.67157]
[1740015008200,5.03716895,2723.8,2723.5,0.38178592]
[1740015008405,4.9929561,2724.5,2723.8,3.67134]
[1740015008566,4.9929561,2724.5,2724.2,4.48857]
[1740015008767,4.9929561,2724.8,2724.4,3.67053]
[1740015009367,4.9929561,2724.8,2724.4,7.34096]
[1740015009571,4.9929561,2724.8,2724.4,3.67043]
[1740015009767,4.9929561,2724.8,2724.4,7.34086]
[1740015009991,4.9929561,2724.8,2724.4,4.512906]
[1740015010178,4.9929561,2724.8,2724.7,3.67012]
[1740015010393,4.9929561,2724.8,2724.6,3.67021]
[1740015011618,4.9929561,2724.8,2724.4,4.512856]
[1740015011919,4.9929561,2724.8,2724.6,3.67021]
[1740015012211,4.9929561,2724.8,2724.4,3.67048]
[1740015012411,4.9929561,2724.8,2724.3,0.54140619]
[1740015012612,3.67022,2724.7,2724.2,0.265]
[1740015012913,1.68961761,2724.6,2724.2,0.265]
[1740015013424,4.9929561,2724.5,2724.2,0.265]
[1740015013586,4.9929561,2724.5,2724.0,3.93506]
[1740015013784,4.9929561,2724.5,2724.1,3.67093]
[1740015014183,4.9929561,2724.5,2724.0,3.93506]
[1740015015101,4.9929561,2724.5,2724.0,0.264]
[1740015015414,0.7988,2724.4,2724.0,0.264]
[1740015016021,0.7988,2724.4,2724.0,3.93506]
[1740015016315,0.7988,2724.4,2724.0,3.67106]
[1740015017821,0.7988,2724.4,2724.0,3.67105]
[1740015017980,0.7988,2724.4,2724.0,7.34201]
[1740015018187,4.9929561,2724.5,2724.3,3.67055]
[1740015019600,4.9929561,2724.5,2724.4,3.67053]
[1740015020817,4.9929561,2724.5,2724.2,3.67068]
[1740015021021,4.9929561,2724.5,2724.0,3.67097]
[1740015021217,0.7562,2724.4,2724.0,3.67097]
[1740015021443,5.00172561,2724.4,2723.7,3.67145]
[1740015021619,4.9929561,2724.3,2723.9,0.264]
[1740015022254,8.6636261,2724.3,2723.9,0.264]
[1740015022407,0.99947417,2724.2,2723.9,0.264]
[1740015022826,0.8069,2724.1,2723.6,3.93552]
[1740015023227,0.8069,2724.1,2723.6,0.264]
[1740015023387,0.8069,2724.1,2723.9,3.67119]
[1740015023593,5.7434561,2724.3,2723.9,3.67119]
[1740015024243,5.7434561,2724.3,2724.0,3.67106]
[1740015026949,5.7434561,2724.3,2723.8,4.47384]
[1740015027095,5.7434561,2724.3,2723.8,3.67124]
[1740015027550,7.05189571,2724.3,2723.6,4.46353]
[1740015027830,0.8298,2724.0,2723.5,0.264]
[1740015028824,4.50089,2724.0,2723.4,3.67177]
[1740015029259,4.50089,2724.0,2723.2,4.46407]
[1740015029558,0.8028,2723.9,2723.4,3.67179]
[1740015029694,0.8028,2723.9,2723.5,3.67165]
[1740015030417,0.8028,2723.9,2723.4,3.67178]
[1740015031128,4.9929561,2723.8,2723.3,0.264]
[1740015031428,4.9929561,2723.8,2723.3,3.93599]
[1740015031626,8.6643361,2723.8,2723.3,0.264]
[1740015031929,4.9929561,2723.8,2723.3,0.264]
[1740015032123,4.9929561,2723.8,2723.3,3.936]
[1740015032742,0.7629,2723.7,2723.2,7.60811]
[1740015033125,0.7629,2723.7,2723.2,3.93605]
[1740015033834,4.43438,2723.7,2723.2,0.264]
[1740015034036,0.7629,2723.7,2723.2,0.264]
[1740015034238,0.7629,2723.7,2723.1,0.005]
[1740015034239,4.9929561,2723.6,2723.1,0.005]
[1740015034416,0.8154,2723.5,2723.1,0.005]
[1740015035834,0.8154,2723.5,2723.2,3.67212]
[1740015036234,4.9929561,2723.6,2723.4,3.67188]
[1740015038339,4.9929561,2723.6,2723.5,3.67174]
[1740015038636,4.9929561,2723.6,2723.4,3.67188]
[1740015041840,4.9929561,2723.6,2723.2,3.67209]
[1740015042144,4.9929561,2723.6,2723.2,3.67206]
[1740015042322,4.9929561,2723.6,2723.3,3.67193]
[1740015043646,4.9929561,2723.6,2723.2,3.67206]
[1740015043846,4.9929561,2723.6,2723.3,3.67194]
[1740015044517,4.9929561,2723.6,2723.5,3.67174]
[1740015048556,4.9929561,2723.6,2723.2,0.7702]
[1740015048719,4.9929561,2723.6,2723.4,3.67178]
[1740015048919,4.9929561,2723.6,2723.4,7.34356]
[1740015049658,4.9929561,2723.6,2723.5,3.67174]
[1740015050961,4.9929561,2723.6,2723.4,3.67178]
[1740015051163,4.9929561,2723.6,2723.2,4.44222]
[1740015051337,4.9929561,2723.6,2723.3,3.67196]
[1740015052255,4.9929561,2723.6,2723.2,4.44222]
[1740015052559,4.9929561,2723.6,2723.3,3.67201]
[1740015053364,4.9929561,2723.6,2723.2,0.7702]
[1740015053571,4.9929561,2723.6,2723.2,8.11442]
[1740015053776,4.9929561,2723.6,2723.2,4.44231]
[1740015054349,4.9929561,2723.6,2723.2,3.67206]
[1740015054545,0.8159,2723.5,2723.1,0.005]
[1740015054750,0.8159,2723.5,2723.1,3.67727]
[1740015055559,0.8159,2723.5,2723.1,0.005]
[1740015056134,0.8159,2723.5,2723.2,3.67213]
[1740015057265,0.8159,2723.5,2723.1,0.005]
[1740015057475,0.8159,2723.5,2723.1,3.67725]
[1740015057838,5.8088561,2723.5,2723.2,3.67214]
[1740015059163,6.38974171,2723.5,2723.1,3.67727]
[1740015059368,6.38974171,2723.5,2723.1,0.005]
[1740015061362,10.06151171,2723.5,2723.1,0.005]
[1740015061662,6.38974171,2723.5,2723.1,0.005]
[1740015062867,10.06150171,2723.5,2723.1,0.005]
[1740015063035,1.00615017,2723.4,2723.1,0.005]
[1740015063760,5.99910627,2723.4,2723.1,0.005]
[1740015066470,4.9929561,2723.4,2723.1,0.005]
[1740015073050,4.9929561,2723.4,2723.1,3.67719]
[1740015073241,4.9929561,2723.4,2723.3,3.67201]
[1740015073976,4.9929561,2723.4,2723.3,4.48031]
[1740015074179,4.9929561,2723.4,2723.3,7.95357334]
[1740015074345,4.9929561,2723.4,2723.3,9.11664467]
[1740015074765,4.9929561,2724.2,2724.1,3.67093]
[1740015077042,4.9929561,2724.2,2724.0,3.67105]
[1740015077246,4.9929561,2724.2,2723.9,4.71957]
[1740015077677,4.9929561,2724.2,2723.9,5.191527]
[1740015077845,4.9929561,2724.2,2724.1,3.67093]
[1740015080465,4.9929561,2724.2,2723.9,5.47205656]
[1740015080669,4.9929561,2724.2,2723.9,4.21559956]
[1740015080877,4.9929561,2724.2,2723.9,3.93507]
[1740015081060,4.9929561,2724.2,2723.9,0.264]
[1740015081948,5.94225671,2724.2,2723.9,0.264]
[1740015082883,5.94225671,2724.2,2723.8,0.264]
[1740015083580,9.61310671,2724.2,2723.5,3.67171]
[1740015083771,0.7811,2724.0,2723.5,3.93571]
[1740015084482,4.9929561,2723.9,2723.5,0.264]
[1740015084786,0.7807,2723.8,2723.4,0.264]
[1740015085480,2.09229261,2723.8,2723.4,0.264]
[1740015086077,2.09229261,2723.8,2723.4,3.93582]
[1740015086797,2.09229261,2723.8,2723.4,0.264]
[1740015086962,2.09229261,2723.8,2723.4,3.93578]
[1740015089068,2.09229261,2723.8,2723.4,0.264]
[1740015089468,0.7807,2723.8,2723.5,3.67174]
[1740015089873,0.7807,2723.8,2723.5,3.67165]
[1740015090069,4.9929561,2723.9,2723.7,3.67139]
[1740015090421,4.9929561,2723.9,2723.5,3.67168]
[1740015091119,4.9929561,2723.9,2723.4,0.264]
[1740015091269,5.93933271,2723.9,2723.3,3.67192]
[1740015091474,5.93933271,2723.9,2723.3,7.60785]
[1740015091675,5.93933271,2723.9,2723.4,3.67187]
[1740015092025,5.93933271,2723.9,2723.5,3.67172]
[1740015093326,4.9929561,2723.9,2723.6,3.6716]
[1740015093475,4.9929561,2723.9,2723.5,3.67172]
[1740015093476,4.9929561,2723.9,2723.7,3.67147]
[1740015094387,4.9929561,2723.9,2723.7,3.67137]
[1740015095077,4.9929561,2723.9,2723.6,3.67159]
[1740015095785,4.9929561,2723.9,2723.3,3.93591]
[1740015096317,4.9929561,2723.9,2723.3,4.778603]
[1740015096467,4.9929561,2723.9,2723.3,1.106693]
[1740015096671,4.9929561,2723.9,2723.5,3.67165]
[1740015096908,4.9929561,2723.9,2723.4,3.67186]
[1740015098023,4.9929561,2723.9,2723.4,3.93586]
[1740015100723,4.9929561,2723.9,2723.4,3.93577]
[1740015101027,4.9929561,2723.9,2723.5,3.67163]
[1740015101188,4.9929561,2723.9,2723.4,3.93577]
[1740015101189,4.9929561,2723.9,2723.6,3.67159]
[1740015101533,4.9929561,2723.9,2723.6,4.42151]
[1740015101673,4.9929561,2723.9,2723.8,3.67134]
[1740015101869,4.9929561,2723.9,2723.7,0.442151]
[1740015102074,4.9929561,2723.9,2723.7,3.67146]
[1740015102525,4.9929561,2723.9,2723.8,3.67134]
[1740015106827,4.9929561,2723.9,2723.7,3.67147]
[1740015106978,4.9929561,2723.9,2723.7,3.67138]
[1740015107175,4.9929561,2723.9,2723.8,3.67134]
[1740015108531,4.9929561,2723.9,2723.8,4.480612]
[1740015112044,4.9929561,2723.9,2723.8,0.809272]
[1740015112349,4.9929561,2723.9,2723.6,0.264]
[1740015112350,0.7718,2723.8,2723.6,0.264]
[1740015113165,0.7718,2723.8,2723.4,0.264]
[1740015113363,0.7718,2723.8,2723.2,3.67214]
[1740015113554,0.7718,2723.8,2723.3,0.264]
[1740015114095,0.7718,2723.8,2723.2,3.93614]
[1740015114392,0.8064,2723.6,2723.1,0.005]
[1740015114602,0.8064,2723.4,2723.1,0.005]
[1740015115691,0.8064,2723.4,2723.1,3.67728]
[1740015118705,0.8064,2723.4,2723.2,3.67207]
[1740015119114,0.8064,2723.4,2723.1,3.6772]
[1740015119321,0.8064,2723.4,2723.2,3.67207]
[1740015119518,4.9929561,2723.5,2723.3,3.67198]
[1740015119672,0.7731,2723.4,2723.1,3.6772]
[1740015119879,0.7731,2723.4,2723.1,7.34937]
[1740015120110,4.9929561,2723.3,2723.1,7.34937]
[1740015120306,4.9929561,2723.3,2723.1,3.67717]
[1740015120521,4.9929561,2723.3,2723.2,3.67215]
[1740015121306,4.9929561,2723.3,2723.2,4.407082]
[1740015122876,4.9929561,2723.3,2723.2,3.67215]
[1740015124125,4.9929561,2723.3,2723.1,0.005]
[1740015124126,0.827,2723.2,2723.1,0.005]
[1740015124492,0.827,2723.2,2723.1,3.67728]
[1740015124689,4.9929561,2723.3,2723.1,0.005]
[1740015124909,4.9929561,2723.3,2723.2,3.67215]
[1740015129298,4.9929561,2723.3,2723.2,4.45775]
[1740015130351,4.9929561,2723.3,2723.1,4.08631361]
[1740015130352,4.9929561,2723.3,2723.1,3.67728]
[1740015131196,4.9929561,2723.3,2723.1,3.6772]
[1740015131449,4.9929561,2723.3,2723.2,3.67215]
[1740015133217,4.9929561,2723.3,2723.2,4.433493]
[1740015133423,4.9929561,2723.3,2723.2,3.67215]
[1740015140165,4.9929561,2723.3,2723.1,3.67728]
[1740015141157,4.9929561,2723.3,2723.2,3.67215]
[1740015143656,4.9929561,2723.3,2723.2,7.97942021]
[1740015143863,4.9929561,2723.9,2723.8,3.67134]
[1740015144172,4.9929561,2724.2,2724.0,3.671]
[1740015144878,4.9929561,2724.2,2724.1,3.67093]
[1740015149182,4.9929561,2724.2,2724.0,3.671]
[1740015149381,4.9929561,2724.2,2724.0,3.67099]
[1740015149687,4.9929561,2724.2,2724.0,3.67098]
[1740015149901,4.9929561,2724.2,2724.1,3.67093]
[1740015150352,4.9929561,2724.2,2724.1,4.45693]
[1740015151698,4.9929561,2724.2,2724.0,4.13877842]
[1740015152401,4.9929561,2724.2,2724.0,0.46779842]
[1740015152600,4.9929561,2724.2,2724.0,4.13876842]
[1740015152782,4.9929561,2724.2,2724.0,3.67097]
[1740015153300,4.9929561,2724.2,2723.9,4.4775]
[1740015153602,4.9929561,2724.2,2723.9,3.6712]
[1740015153802,4.9929561,2724.2,2723.8,3.93531]
[1740015153952,4.9929561,2724.2,2723.8,5.14461712]
[1740015154153,4.9929561,2724.2,2723.9,3.67114]
[1740015154367,0.8037,2724.1,2723.8,3.67131]
[1740015154568,0.8037,2724.1,2723.7,0.72322117]
[1740015154765,1.38336561,2724.1,2723.7,0.72322117]
[1740015155586,0.7628,2723.9,2723.3,3.672]
[1740015155754,0.7628,2723.9,2723.3,3.936]
[1740015157307,0.7628,2723.9,2723.1,3.67727]
[1740015157308,3.67142,2723.8,2723.1,3.67727]
[1740015157472,1.235122,2723.7,2723.2,0.264]
[1740015158303,1.235122,2723.7,2723.2,3.93613]
[1740015159105,0.7917,2723.7,2723.2,0.264]
[1740015159393,0.7917,2723.7,2723.3,3.67201]
[1740015160814,0.7917,2723.7,2723.2,3.93606]
[1740015161692,4.9929561,2723.6,2723.2,3.93606]
[1740015162462,5.57142171,2723.6,2723.1,7.34937]
[1740015162662,5.57142171,2723.6,2723.1,3.67718]
[1740015162863,5.57142171,2723.6,2723.3,3.672]
[1740015164799,5.57142171,2723.6,2723.2,3.67214]
[1740015165095,5.57142171,2723.6,2723.1,3.67718]
[1740015165296,1.79246317,2723.5,2723.1,0.005]
[1740015165463,0.789,2723.3,2723.1,0.005]
[1740015165794,4.9929561,2723.2,2723.1,0.005]
[1740015165960,5.7819561,2723.2,2723.1,0.005]
[1740015166164,6.72735271,2723.2,2723.1,0.005]
[1740015166501,10.94950271,2723.2,2723.1,0.005]
[1740015167162,14.42417292,2723.2,2723.1,0.005]
[1740015169704,17.42417292,2723.2,2723.1,0.005]
[1740015170306,17.52417292,2723.2,2723.1,0.005]
[1740015170910,17.52417292,2723.2,2722.9,0.1490261]
[1740015170911,8.04762,2723.0,2722.9,0.1490261]
[1740015171397,3.67385,2722.0,2721.3,0.264]
[1740015171707,9.4921161,2721.9,2721.3,0.264]
[1740015171912,4.9929561,2721.8,2721.3,0.264]
[1740015172513,4.9929561,2721.8,2721.5,3.67444]
[1740015174474,4.9929561,2721.8,2721.7,3.67417]
[1740015175214,4.9929561,2721.8,2721.5,3.67444]
[1740015175584,4.9929561,2721.8,2721.3,4.77032]
[1740015176519,4.9929561,2721.8,2721.4,3.67449]
[1740015177317,4.9929561,2721.8,2721.6,3.67425]
[1740015180191,4.9929561,2721.8,2721.7,3.67417]
[1740015180396,4.9929561,2721.8,2721.7,4.49727]
[1740015180828,4.9929561,2721.8,2721.7,0.8231]
[1740015181032,4.9929561,2721.8,2721.4,4.49761]
[1740015181332,4.9929561,2721.8,2721.5,3.67443]
[1740015181500,4.9929561,2721.8,2721.6,3.67419]
[1740015182328,4.9929561,2721.8,2721.7,3.67417]
[1740015182991,4.9929561,2721.8,2721.7,4.486146]
[1740015183383,4.9929561,2721.8,2721.6,3.67419]
[1740015183633,4.9929561,2721.8,2721.7,3.67417]
[1740015183788,4.9929561,2721.8,2721.5,4.44574]
[1740015183988,4.9929561,2721.8,2721.6,3.67422]
[1740015184600,4.9929561,2721.8,2721.6,7.34842]
[1740015184806,4.9929561,2721.8,2721.6,3.6742]
[1740015185226,4.9929561,2721.8,2721.7,3.67417]
[1740015186495,4.9929561,2721.8,2721.7,5.249447]
[1740015186690,4.9929561,2721.8,2721.6,3.6742]
[1740015187412,4.9929561,2721.8,2721.7,3.67417]
[1740015188205,4.9929561,2721.8,2721.6,3.6743]
[1740015188406,4.9929561,2721.8,2721.5,0.264]
[1740015189024,4.9929561,2721.8,2721.5,3.93841]
[1740015189536,4.9929561,2721.8,2721.6,3.6743]
[1740015190411,4.9929561,2721.8,2721.5,3.93844]
[1740015190734,4.9929561,2721.8,2721.5,0.264]
[1740015190929,5.0295931,2721.8,2721.6,3.67427]
[1740015191336,5.0295931,2721.8,2721.6,7.34854]
[1740015191638,5.0295931,2721.8,2721.6,3.67427]
[1740015192841,5.0295931,2721.8,2721.7,3.67417]
[1740015193044,5.0295931,2721.8,2721.6,3.67427]
[1740015194042,5.0295931,2721.8,2721.5,0.264]
[1740015194233,5.0295931,2721.8,2721.5,3.93838]
[1740015194530,5.0295931,2721.8,2721.5,0.264]
[1740015194737,5.0295931,2721.8,2721.5,3.93832]
[1740015195099,5.0295931,2721.8,2721.2,0.7991]
[1740015195339,5.0295931,2721.8,2721.7,3.67417]
[1740015195698,5.0295931,2721.8,2721.7,4.46477]
[1740015197003,5.0295931,2721.8,2721.7,7.93944021]
[1740015200261,0.036637,2721.8,2721.7,7.93944021]
[1740015205680,0.036637,2721.8,2721.7,3.67417]
[1740015206468,0.036637,2721.8,2721.7,3.93817]
[1740015207461,0.036637,2721.8,2721.7,3.67417]
[1740015207664,0.036637,2721.8,2721.7,3.93817]
[1740015207866,0.8105,2721.5,2720.9,3.94024]
[1740015208088,0.448489,2721.4,2720.9,3.94024]
[1740015208247,0.448489,2721.4,2721.0,3.6751]
[1740015208447,0.8105,2721.5,2721.0,3.6751]
[1740015209281,0.8105,2721.5,2721.1,3.67489]
[1740015209875,0.8105,2721.5,2721.1,4.01927234]
[1740015210068,0.8105,2721.5,2721.1,4.28427234]
[1740015210649,0.8105,2721.5,2721.1,7.95915234]
[1740015210981,5.7842931,2721.8,2721.4,3.67457]
[1740015211182,5.7842931,2721.8,2721.5,3.67443]
[1740015211479,5.0295931,2721.8,2721.5,7.34877]
[1740015211791,5.0295931,2721.8,2721.7,3.67417]
[1740015212001,5.0295931,2721.8,2721.6,3.67426]
[1740015212152,5.0295931,2721.8,2721.5,3.67434]
[1740015212153,5.0295931,2721.8,2721.7,3.67417]
[1740015212483,0.036637,2721.8,2721.7,4.45697]
[1740015212647,0.036637,2721.8,2721.7,8.98499902]
[1740015213147,7e-06,2721.8,2721.7,8.98499902]
[1740015213348,4.9929561,2722.4,2722.3,4.50456]
[1740015213548,4.9929561,2722.9,2722.8,3.67268]
[1740015213762,4.9929561,2722.9,2722.6,3.67295]
[1740015213967,4.9929561,2722.9,2722.6,7.34578]
[1740015214162,4.9929561,2722.9,2722.6,3.67283]
[1740015214365,4.9929561,2722.9,2722.8,3.67268]
[1740015215193,5.7899561,2723.6,2723.1,3.67226]
[1740015215388,5.7899561,2723.6,2723.1,0.266]
[1740015215592,4.9929561,2723.6,2723.5,3.67174]
[1740015215960,4.9929561,2723.6,2723.3,3.672]
[1740015216481,4.9929561,2723.6,2723.1,3.93826]
[1740015216973,5.57195171,2723.6,2723.1,3.93826]
[1740015217567,5.57195171,2723.6,2723.1,0.266]
[1740015219482,5.57195171,2723.6,2723.1,3.93827]
[1740015219700,4.9929561,2723.6,2723.1,3.93827]
[1740015220330,4.9929561,2723.6,2723.2,3.6721]
[1740015221005,4.9929561,2723.6,2723.1,0.266]
[1740015221291,4.9929561,2723.6,2723.1,3.93818]
[1740015221889,4.9929561,2723.6,2723.1,7.61036]
[1740015222089,4.9929561,2723.6,2723.2,3.67213]
[1740015222270,4.9929561,2723.6,2723.1,3.93818]
[1740015222892,4.9929561,2723.6,2723.2,3.67214]
[1740015223492,4.9929561,2723.6,2723.3,3.67192]
[1740015224207,4.9929561,2723.6,2723.2,3.67211]
[1740015224500,4.9929561,2723.6,2723.2,0.761029]
[1740015224684,4.9929561,2723.6,2723.3,3.67188]
[1740015224993,4.9929561,2723.6,2723.5,3.67174]
[1740015226690,4.9929561,2724.3,2724.1,3.67091]
[1740015228211,9.59735192,2724.2,2723.1,0.72328154]
[1740015228358,0.7642,2723.4,2722.9,3.67246]
[1740015228564,4.9929561,2723.3,2722.9,3.67246]
[1740015228896,4.9929561,2723.3,2723.2,3.67215]
[1740015229495,4.9929561,2723.3,2723.1,0.7879]
[1740015229705,4.9929561,2723.3,2723.2,3.67215]
[1740015229898,4.9929561,2723.3,2723.2,4.485384]
[1740015231014,4.9929561,2723.3,2723.2,1.083234]
[1740015231178,4.9929561,2723.3,2723.2,0.27]
[1740015231627,4.9929561,2723.3,2722.8,0.7899]
[1740015231931,3.47467021,2723.0,2722.6,0.27]
[1740015232680,7.14716021,2723.0,2722.4,0.27]
[1740015233117,12.14011631,2723.0,2722.2,8.255]
[1740015233429,7.14759021,2722.7,2722.3,0.27]
[1740015233580,3.47467021,2722.7,2722.3,0.27]
[1740015234331,3.67281,2722.8,2721.8,0.778]
[1740015234332,0.8323,2722.8,2721.8,0.778]
[1740015234479,0.8323,2722.3,2721.7,0.27]
[1740015234686,5.8252561,2722.3,2721.7,0.27]
[1740015235214,9.4986461,2722.3,2721.6,1.78536401]
[1740015236401,9.4986461,2722.3,2721.8,3.0]
[1740015236612,9.4986461,2722.3,2721.7,3.0]
[1740015236795,9.4986461,2722.3,2721.7,3.8189604]
[1740015237029,5.8252561,2722.3,2721.7,7.4931204]
[1740015237185,5.8252561,2722.3,2721.7,3.8189604]
[1740015237834,5.8252561,2722.3,2721.8,3.67403]
[1740015238189,5.8252561,2722.3,2721.7,3.8189604]
[1740015239127,5.8252561,2722.3,2721.7,7.4930304]
[1740015239311,5.8252561,2722.3,2721.7,3.8189604]
[1740015239482,5.8252561,2722.3,2721.8,3.67393]
[1740015240135,5.8252561,2722.3,2721.8,7.34787]
[1740015240496,5.8252561,2722.3,2721.9,3.67378]
[1740015240683,5.8252561,2722.3,2721.8,3.67393]
[1740015241523,5.8252561,2722.3,2721.7,3.8189604]
[1740015241995,9.4986261,2722.3,2721.7,3.8189604]
[1740015242196,9.4986261,2722.3,2721.7,7.4930304]
[1740015242715,9.4986261,2722.3,2721.7,3.8189604]
[1740015242925,9.4986261,2722.3,2721.6,0.73996401]
[1740015243336,0.774,2722.2,2721.5,3.269]
[1740015244029,3.67364,2722.1,2721.5,3.269]
[1740015244229,0.774,2722.2,2721.8,3.67396]
[1740015244431,0.774,2722.2,2721.9,3.6738]
[1740015244735,0.774,2722.2,2721.8,3.67399]
[1740015246231,0.774,2722.2,2721.9,3.67386]
[1740015247257,4.9929561,2722.6,2722.4,3.67315]
[1740015247415,4.9929561,2722.7,2722.4,3.67315]
[1740015247754,4.9929561,2722.7,2722.2,0.269]
[1740015248048,0.7994,2722.4,2722.3,0.269]
[1740015248407,0.7994,2722.4,2721.8,3.67393]
[1740015248565,3.67339,2722.3,2721.8,0.269]
[1740015248749,0.814572,2722.3,2721.8,0.269]
[1740015249065,0.814572,2722.3,2721.8,3.94303]
[1740015249420,5.7923561,2722.4,2722.0,3.67372]
[1740015249626,5.7923561,2722.4,2721.9,3.67378]
[1740015250167,5.7923561,2722.4,2721.8,0.269]
[1740015250747,3.67337,2722.3,2721.8,0.269]
[1740015251072,5.7923561,2722.4,2721.8,3.94303]
[1740015251942,9.4656161,2722.4,2721.8,0.269]
[1740015252156,10.46980927,2722.4,2721.8,3.94303]
[1740015252587,9.67040927,2722.4,2721.8,0.269]
[1740015252761,9.67040927,2722.4,2721.3,3.0]
[1740015252762,0.7959,2722.1,2721.3,4.48629]
[1740015252934,4.46959,2722.1,2721.4,3.67449]
[1740015253549,3.67385,2722.0,2721.3,4.0807]
[1740015253753,3.67385,2722.0,2721.3,7.75533]
[1740015253954,4.46959,2722.1,2721.4,3.67457]
[1740015254237,4.46959,2722.1,2721.4,0.269]
[1740015254238,3.67395,2721.9,2721.4,0.269]
[1740015254482,0.8111,2722.0,2721.4,3.94357]
[1740015254632,0.8111,2722.0,2721.4,7.61804]
[1740015255164,3.67391,2721.9,2721.2,3.67479]
[1740015255351,8.6668661,2721.9,2721.3,0.269]
[1740015255551,4.9929561,2721.9,2721.4,3.67455]
[1740015255931,4.9929561,2721.9,2721.3,0.269]
[1740015256280,0.7727,2721.8,2721.3,0.269]
[1740015257082,0.7727,2721.8,2721.4,3.67456]
[1740015257687,0.7727,2721.8,2721.5,3.67442]
[1740015259773,5.7656561,2721.8,2721.5,3.67442]
[1740015259986,5.7656561,2721.8,2721.6,3.67428]
[1740015260191,5.7656561,2721.8,2721.5,3.67443]
[1740015260800,5.7656561,2721.8,2721.6,3.6743]
[1740015261000,5.7656561,2721.8,2721.5,3.67443]
[1740015261152,5.7656561,2721.8,2721.6,3.67422]
[1740015261699,5.7656561,2721.8,2721.3,0.269]
[1740015261903,5.7656561,2721.8,2721.3,3.94363]
[1740015262097,5.7656561,2721.8,2721.3,0.269]
[1740015262269,5.7656561,2721.8,2721.5,3.67434]
[1740015262597,5.7656561,2721.8,2721.4,4.0184987]
[1740015262785,5.7656561,2721.8,2721.5,3.67443]
[1740015264060,5.7656561,2721.8,2721.5,7.34879]